Body Name,Body,Service Level,Expense Type,Expense Code,Narrative,Date,Transaction Number,Amount,Capital and Revenue,Supplier Name,Supplier ID
South Ribble Council,http://statistics.data.gov.uk/doc/local-authority/30UN,Property Services,Salaries - Basic,1101,For 2 cleaners 21 hrs @ 11.45 per hour at the Civic Centre as per NAME REDACTED,01/05/2020,0000455872,343.50,Revenue,ACE PERSONNEL,00015095
South Ribble Council,http://statistics.data.gov.uk/doc/local-authority/30UN,Information Services,Capital Expenditure,C234,"55 x Apple Pencil for iPad Pro (2nd Generation) @ 98.60 each, as per quote",01/05/2020,0000455980,"5,423.00",Revenue,ACS SYSTEMS UK LTD,00070166
South Ribble Council,http://statistics.data.gov.uk/doc/local-authority/30UN,Revenues Plus,Financial,4811,ret chqs,06/05/2020,0000456192,8.40,Revenue,ALLPAY LTD,00122276
South Ribble Council,http://statistics.data.gov.uk/doc/local-authority/30UN,Revenues Plus,Financial,4811,post office trans,06/05/2020,0000456192,610.71,Revenue,ALLPAY LTD,00122276
South Ribble Council,http://statistics.data.gov.uk/doc/local-authority/30UN,Revenues Plus,Financial,4811,paypoint,06/05/2020,0000456192,66.80,Revenue,ALLPAY LTD,00122276
South Ribble Council,http://statistics.data.gov.uk/doc/local-authority/30UN,Revenues Plus,Financial,4811,webconn,06/05/2020,0000456192,46.00,Revenue,ALLPAY LTD,00122276
South Ribble Council,http://statistics.data.gov.uk/doc/local-authority/30UN,Information Services,Peripherals,4248,iConnect Hosted Service - Extended Security annual maintenance renewal for period 01/09/19 - 31/08/20,22/05/2020,0000456591,"1,099.00",Revenue,APT LTD,130261
South Ribble Council,http://statistics.data.gov.uk/doc/local-authority/30UN,Homelessness,Other Misc,4851,carpet x 3 ADDRESS REDACTED,06/05/2020,0000456139,335.00,Revenue,ASH BARN CONSTRUCTION LTD,00081278
South Ribble Council,http://statistics.data.gov.uk/doc/local-authority/30UN,Regeneration,Other Misc,4851,SRBC Together A5 Postcard Finished size: A5 (210mm x 148mm) - Landscape Pages: Leaflet: 2 Pages. Printing: Printed in full colour process,01/05/2020,0000455444,434.00,Revenue,B & D PRINT SERVICES LTD,00015134
South Ribble Council,http://statistics.data.gov.uk/doc/local-authority/30UN,Neighbourhood Admin & Support,Capital Expenditure,C230,Trees & Shrubs,06/05/2020,0000453356,534.60,Revenue,BANNISTER HALL LANDSCAPE SUPPLIES,00117786
South Ribble Council,http://statistics.data.gov.uk/doc/local-authority/30UN,Neighbourhood Admin & Support,Capital Expenditure,C230,Pyracantha Coccined 3ft high @ 2.00 each,06/05/2020,0000453356,20.00,Revenue,BANNISTER HALL LANDSCAPE SUPPLIES,00117786
South Ribble Council,http://statistics.data.gov.uk/doc/local-authority/30UN,Neighbourhood Admin & Support,Capital Expenditure,C230,Prunus Lavrocerasus 60-90 C3 @ 2.80 each,06/05/2020,0000453356,126.00,Revenue,BANNISTER HALL LANDSCAPE SUPPLIES,00117786
South Ribble Council,http://statistics.data.gov.uk/doc/local-authority/30UN,Neighbourhood Admin & Support,Capital Expenditure,C230,trees non vat,06/05/2020,0000453356,300.00,Revenue,BANNISTER HALL LANDSCAPE SUPPLIES,00117786
South Ribble Council,http://statistics.data.gov.uk/doc/local-authority/30UN,Property Services,Capital Expenditure,C230,"Please undertake works to upgrade the emergency lighting to floors 1, 2 & 3 at the Civic Centre as per quote 19/SRBC (2894.66 x 3)",22/05/2020,0000456518,"8,683.98",Revenue,BELEC ELECTRICAL LTD,130290
South Ribble Council,http://statistics.data.gov.uk/doc/local-authority/30UN,Property Services,Rep & Maint Premises,2020,"Annual contract 2020 / 2021 for care plan 3 at Moss Side Depot, 81 Bison Place, Leyland",01/05/2020,0000454452,868.29,Revenue,BRITISH GAS SERVICES (COMMERCIAL) LTD,00016214
South Ribble Council,http://statistics.data.gov.uk/doc/local-authority/30UN,Property Services,Rep & Maint Premises,2020,Annual contract 2020 / 2021 for care plan 3 at ADDRESS REDACTED,01/05/2020,0000454453,819.94,Revenue,BRITISH GAS SERVICES (COMMERCIAL) LTD,00016214
South Ribble Council,http://statistics.data.gov.uk/doc/local-authority/30UN,Property Services,Rep & Maint Premises,2020,"Annual contract 2020 / 2021 for care plan 3 at the Civic Centre, Leyland",01/05/2020,0000454454,"5,136.27",Revenue,BRITISH GAS SERVICES (COMMERCIAL) LTD,00016214
South Ribble Council,http://statistics.data.gov.uk/doc/local-authority/30UN,Property Services,Rep & Maint Premises,2020,Annual contract 2020 / 2021 for care plan 3 at ADDRESS REDACTED,01/05/2020,0000454455,403.93,Revenue,BRITISH GAS SERVICES (COMMERCIAL) LTD,00016214
South Ribble Council,http://statistics.data.gov.uk/doc/local-authority/30UN,Property Services,Rep & Maint Premises,2020,Annual contract 2020 / 2021 for care plan 3 at ADDRESS REDACTED,01/05/2020,0000454456,340.01,Revenue,BRITISH GAS SERVICES (COMMERCIAL) LTD,00016214
South Ribble Council,http://statistics.data.gov.uk/doc/local-authority/30UN,Property Services,Rep & Maint Premises,2020,Annual contract 2020 / 2021 for care plan 3 at ADDRESS REDACTED,01/05/2020,0000454458,357.68,Revenue,BRITISH GAS SERVICES (COMMERCIAL) LTD,00016214
South Ribble Council,http://statistics.data.gov.uk/doc/local-authority/30UN,Environmental Health,Operational Furniture & Equip,4010,BRE Excess Cold Calculator Subscription - per NAME REDACTED,15/05/2020,0000456368,"1,000.00",Revenue,BUILDING RESEARCH ESTABLISHMENT LTD,131951
South Ribble Council,http://statistics.data.gov.uk/doc/local-authority/30UN,Area 2 - Waste Transport/Eastern & C,Cap Vehicles,C440,Supply & delivery of 4 RCVs as per Quote dated 30 Sept 2019 for Lots 1 & 2 only.,01/05/2020,0000455548,"157,412.44",Revenue,C P DAVIDSON & SONS LTD,00043122
South Ribble Council,http://statistics.data.gov.uk/doc/local-authority/30UN,Area 2 - Waste Transport/Eastern & C,Cap Vehicles,C440,road fund licence,01/05/2020,0000455548,670.00,Revenue,C P DAVIDSON & SONS LTD,00043122
South Ribble Council,http://statistics.data.gov.uk/doc/local-authority/30UN,Area 2 - Waste Transport/Eastern & C,Cap Vehicles,C440,Fitting of optional extra Wabco tailguard assist to 4 RCVs (see original PO - PUR0041870),01/05/2020,0000455549,"1,964.63",Revenue,C P DAVIDSON & SONS LTD,00043122
South Ribble Council,http://statistics.data.gov.uk/doc/local-authority/30UN,Area 2 - Waste Transport/Eastern & C,Cap Vehicles,C440,Supply & delivery of 4 RCVs as per Quote dated 30 Sept 2019 for Lots 1 & 2 only.,01/05/2020,0000455743,"157,412.44",Revenue,C P DAVIDSON & SONS LTD,00043122
South Ribble Council,http://statistics.data.gov.uk/doc/local-authority/30UN,Area 2 - Waste Transport/Eastern & C,Cap Vehicles,C440,road fund licence,01/05/2020,0000455743,670.00,Revenue,C P DAVIDSON & SONS LTD,00043122
South Ribble Council,http://statistics.data.gov.uk/doc/local-authority/30UN,Area 2 - Waste Transport/Eastern & C,Cap Vehicles,C440,Fitting of optional extra Wabco tailguard assist to 4 RCVs (see original PO - PUR0041870),01/05/2020,0000455744,"1,964.63",Revenue,C P DAVIDSON & SONS LTD,00043122
South Ribble Council,http://statistics.data.gov.uk/doc/local-authority/30UN,Area 2 - Waste Transport/Eastern & C,Cap Vehicles,C440,Supply & delivery of 4 RCVs as per Quote dated 30 Sept 2019 for Lots 1 & 2 only.,01/05/2020,0000455991,"157,412.44",Revenue,C P DAVIDSON & SONS LTD,00043122
South Ribble Council,http://statistics.data.gov.uk/doc/local-authority/30UN,Area 2 - Waste Transport/Eastern & C,Cap Vehicles,C440,road fund licence,01/05/2020,0000455991,670.00,Revenue,C P DAVIDSON & SONS LTD,00043122
South Ribble Council,http://statistics.data.gov.uk/doc/local-authority/30UN,Area 2 - Waste Transport/Eastern & C,Cap Vehicles,C440,Fitting of optional extra Wabco tailguard assist to 4 RCVs (see original PO - PUR0041870),01/05/2020,0000455992,"1,964.63",Revenue,C P DAVIDSON & SONS LTD,00043122
South Ribble Council,http://statistics.data.gov.uk/doc/local-authority/30UN,Area 2 - Waste Transport/Eastern & C,Cap Vehicles,C440,Supply & delivery of 4 RCVs as per Quote dated 30 Sept 2019 for Lots 1 & 2 only.,01/05/2020,0000455993,"157,412.44",Revenue,C P DAVIDSON & SONS LTD,00043122
South Ribble Council,http://statistics.data.gov.uk/doc/local-authority/30UN,Area 2 - Waste Transport/Eastern & C,Cap Vehicles,C440,road fund licence,01/05/2020,0000455993,670.00,Revenue,C P DAVIDSON & SONS LTD,00043122
South Ribble Council,http://statistics.data.gov.uk/doc/local-authority/30UN,Area 2 - Waste Transport/Eastern & C,Cap Vehicles,C440,Fitting of optional extra Wabco tailguard assist to 4 RCVs (see original PO - PUR0041870),01/05/2020,0000455994,"1,964.63",Revenue,C P DAVIDSON & SONS LTD,00043122
South Ribble Council,http://statistics.data.gov.uk/doc/local-authority/30UN,Property Services,Capital Expenditure,C230,Cost for the gas  pipe disconnection at ADDRESS REDACTED as per quotation ref 32923086,07/05/2020,0000456300,"1,211.00",Revenue,Cadent,133055
South Ribble Council,http://statistics.data.gov.uk/doc/local-authority/30UN,Planning,Agency Fees,1121,Remote Planning Validation Support,06/05/2020,0000455937,"2,500.00",Revenue,CAPITA BUSINESS SERVICES LTD,00117948
South Ribble Council,http://statistics.data.gov.uk/doc/local-authority/30UN,Revenues Plus,Peripherals,4242,E Billing Server Migration,06/05/2020,0000456181,"1,200.00",Revenue,CAPITA BUSINESS SERVICES LTD,00122179
South Ribble Council,http://statistics.data.gov.uk/doc/local-authority/30UN,Information Services,Peripherals,4245,"Migration of ABC and Portal test and live, as per quote ref. RENX/EF-PG/011",20/05/2020,0000456186,"2,400.00",Revenue,CAPITA BUSINESS SERVICES LTD,00122179
South Ribble Council,http://statistics.data.gov.uk/doc/local-authority/30UN,Revenues Plus,Professional Fees,4520,Covid-19 System Changes for LHA and EAD,20/05/2020,0000456525,"2,334.53",Revenue,CAPITA BUSINESS SERVICES LTD,00122179
South Ribble Council,http://statistics.data.gov.uk/doc/local-authority/30UN,Planning,Agency Fees,1121,credit 8010010250 taken owe invoice,20/05/2020,0000456539,"2,500.00",Revenue,CAPITA BUSINESS SERVICES LTD,00117948
South Ribble Council,http://statistics.data.gov.uk/doc/local-authority/30UN,Planning,Agency Fees,1121,Remote validation support for Development Management,29/05/2020,0000456689,"1,066.56",Revenue,CAPITA PROPERTY AND INFRASTRUCTURE LTD,131347
South Ribble Council,http://statistics.data.gov.uk/doc/local-authority/30UN,HR & Communications,Other Misc,4851,HR MEMBERSHIP SUBSCRIPTION FOR HR-INFORM (TWO YEAR CONRACT) 1ST YEAR PAYMENT TO COVER 6 APRIL 2020 - 5 APRIL 2021,01/05/2020,0000456020,608.00,Revenue,CHARTERED INST OF PERSONNEL & DEVELOPMEN,00024947
South Ribble Council,http://statistics.data.gov.uk/doc/local-authority/30UN,Revenues Plus,Agency Fees,1121,NAME REDACTED - 2019 - 20,13/05/2020,0000456346,"21,239.03",Revenue,CHORLEY BOROUGH COUNCIL,00017352
South Ribble Council,http://statistics.data.gov.uk/doc/local-authority/30UN,Shared Financial Services,Agency Fees,1121,50% recharge for NAME REDACTED for covering the CEO position for the period April 2019 to March 2020,22/05/2020,0000456580,"63,228.90",Revenue,CHORLEY BOROUGH COUNCIL,00017352
South Ribble Council,http://statistics.data.gov.uk/doc/local-authority/30UN,Shared Financial Services,External Contractors Charges,4570,REDACTED grievance investigation costs and solicitors fees.,29/05/2020,0000456666,"15,217.90",Revenue,CHORLEY BOROUGH COUNCIL,00017352
South Ribble Council,http://statistics.data.gov.uk/doc/local-authority/30UN,Property Services,Rep & Maint Premises,2020,Please attend Civic Centre and re-wire and install a cabinet equipment in the CCTV room / the Facilities Officers Room as per NAME REDACTED,15/05/2020,0000456372,"1,000.00",Revenue,CHUBB LTD,00090625
South Ribble Council,http://statistics.data.gov.uk/doc/local-authority/30UN,Property Services,Rep & Maint Fixed Plant,2035,2020 / 2021 annual fees for the service & monitoring of the Intruder alarm at Leyland market site ID1584234,15/05/2020,0000456373,419.00,Revenue,CHUBB LTD,00090625
South Ribble Council,http://statistics.data.gov.uk/doc/local-authority/30UN,Property Services,Rep & Maint Fixed Plant,2035,"2020 / 2021 annual fees for the monitoring & maintenance of the intruder alarm at Moss Side Depot, 81 Bison Place, Leyland Site ID1584236",15/05/2020,0000456404,540.00,Revenue,CHUBB LTD,00090625
South Ribble Council,http://statistics.data.gov.uk/doc/local-authority/30UN,Property Services,Rep & Maint Premises,2020,2020 / 2021 fees for the maintenance of the intruder alarm at ADDRESS REDACTED - contract number 1076775,15/05/2020,0000456410,840.02,Revenue,CHUBB LTD,00090625
South Ribble Council,http://statistics.data.gov.uk/doc/local-authority/30UN,Property Services,Rep & Maint Fixed Plant,2035,2020 / 2021 fees for the maintenance of the intruder alarms at Worden Arts Centre -site ID 1076780,15/05/2020,0000456411,972.26,Revenue,CHUBB LTD,00090625
South Ribble Council,http://statistics.data.gov.uk/doc/local-authority/30UN,Property Services,Rep & Maint Fixed Plant,2035,"2020 / 2021 annual fees for the monitoring & maintenance of the intruder alarm system at the Civic Centre, Leyland",15/05/2020,0000456412,"2,157.90",Revenue,CHUBB LTD,00090625
South Ribble Council,http://statistics.data.gov.uk/doc/local-authority/30UN,Property Services,Rep & Maint Fixed Plant,2035,2020 / 2021 annual fee for the monitoring & maintenance of the CCTV system at the Civic Centre ref 1543140,15/05/2020,0000456413,"2,997.37",Revenue,CHUBB LTD,00090625
South Ribble Council,http://statistics.data.gov.uk/doc/local-authority/30UN,Property Services,Rep & Maint Premises,2020,2020 / 2021 fees for the service & maintenance of the CCTV system at Leyland market site ID1584234,15/05/2020,0000456415,258.00,Revenue,CHUBB LTD,00090625
South Ribble Council,http://statistics.data.gov.uk/doc/local-authority/30UN,Information Services,Peripherals,4248,ICON - CivicaPay Excess Transactions July 18 - June 19,22/05/2020,0000449003,"6,300.00",Revenue,CIVICA UK LTD,00102717
South Ribble Council,http://statistics.data.gov.uk/doc/local-authority/30UN,Information Services,Peripherals,4248,"SRBC - annual support, SSL security, DR & Website 01/07/20 - 30/06/21",29/05/2020,0000456638,"10,897.03",Revenue,CIVICA UK LTD,00102717
South Ribble Council,http://statistics.data.gov.uk/doc/local-authority/30UN,Information Services,Peripherals,4248,"Accent Foundation - Annual support, SSL security, DR & Website 01/07/20 - 30/06/21",29/05/2020,0000456639,"5,193.88",Revenue,CIVICA UK LTD,00102717
South Ribble Council,http://statistics.data.gov.uk/doc/local-authority/30UN,Information Services,Peripherals,4248,"New Progress - Annual support, SSL security, DR & Website 01/07/20 - 30/06/21",29/05/2020,0000456640,"5,193.88",Revenue,CIVICA UK LTD,00102717
South Ribble Council,http://statistics.data.gov.uk/doc/local-authority/30UN,Property Services,Licence Fees,4886,Please carry out Void EPC as per following ADDRESS REDACTED,13/05/2020,0000456292,300.00,Revenue,Coles Knapp,133001
South Ribble Council,http://statistics.data.gov.uk/doc/local-authority/30UN,Property Services,Licence Fees,4886,Please carry out Void EPC as per following ADDRESS REDACTED,13/05/2020,0000456301,400.00,Revenue,Coles Knapp,133001
South Ribble Council,http://statistics.data.gov.uk/doc/local-authority/30UN,Property Services,Licence Fees,4886,force through per NAME REDACTED,13/05/2020,0000456302,950.00,Revenue,Coles Knapp,133001
South Ribble Council,http://statistics.data.gov.uk/doc/local-authority/30UN,Regeneration,Other Misc,4851,COVID-19 Support Letter,01/05/2020,0000455531,"1,266.87",Revenue,CRITIQOM,131053
South Ribble Council,http://statistics.data.gov.uk/doc/local-authority/30UN,Revenues Plus,Postage,4291,Postage April to Sept 2020,01/05/2020,0000456085,568.94,Revenue,CRITIQOM,131053
South Ribble Council,http://statistics.data.gov.uk/doc/local-authority/30UN,Revenues Plus,Postage,4291,Postage April to Sept 2020,13/05/2020,0000456226,420.11,Revenue,CRITIQOM,131053
South Ribble Council,http://statistics.data.gov.uk/doc/local-authority/30UN,Revenues Plus,Postage,4291,Postage April to Sept 2020,15/05/2020,0000456477,491.56,Revenue,CRITIQOM,131053
South Ribble Council,http://statistics.data.gov.uk/doc/local-authority/30UN,Revenues Plus,Postage,4291,Postage April to Sept 2020,22/05/2020,0000456569,547.37,Revenue,CRITIQOM,131053
South Ribble Council,http://statistics.data.gov.uk/doc/local-authority/30UN,Development Enterprise & Comm Mgnt,Other Misc,4851,"2690077 South Ribble IQ PostMe IQ PostMe Full Colour, Simplex 1000 2688677 South Ribble IQ PostMe IQ PostMe Full Colour, Duplex 1463",22/05/2020,0000456596,915.94,Revenue,CRITIQOM,131053
South Ribble Council,http://statistics.data.gov.uk/doc/local-authority/30UN,HR & Communications,Balance Sheet,0030,CYCLESCHEME - FULL BY PACKAGE - CERTIFICATE NUMBER: REDACTED - NAME REDACTED,29/05/2020,0000456636,583.33,Revenue,CYCLESCHEME CO  UK,130237
South Ribble Council,http://statistics.data.gov.uk/doc/local-authority/30UN,Legal,Legal,4821,PROFESSIONAL SERVICES WITH REGARD TO THE CITY DEAL (SOLICITOR IS IOAN DAVIES),13/05/2020,0000456140,"1,248.00",Revenue,DAC BEACHCROFT LLP,131193
South Ribble Council,http://statistics.data.gov.uk/doc/local-authority/30UN,Legal,Legal,4821,TO PROVIDE ADVICE RE EMPLOYMENT MATTER,13/05/2020,0000456231,756.00,Revenue,DAC BEACHCROFT LLP,131193
South Ribble Council,http://statistics.data.gov.uk/doc/local-authority/30UN,Legal,Legal,4821,PROFESSIONAL SERVICES REGARDING AN EMPLOYMENT MATTER,13/05/2020,0000456351,"1,599.50",Revenue,DAC BEACHCROFT LLP,131193
South Ribble Council,http://statistics.data.gov.uk/doc/local-authority/30UN,Legal,Legal,4821,PROFESSIONAL SERVICES REGARDING AN EMPLOYMENT MATTER,13/05/2020,0000456356,"2,494.00",Revenue,DAC BEACHCROFT LLP,131193
South Ribble Council,http://statistics.data.gov.uk/doc/local-authority/30UN,Area 2 - Waste Transport/Eastern & C,Materials General,4040,"1x fan belt, 1x water pump, VO65 KPX, JFC14527 (NAME REDACTED)",13/05/2020,0000456236,507.66,Revenue,DENNIS EAGLE LTD,00019774
South Ribble Council,http://statistics.data.gov.uk/doc/local-authority/30UN,Area 2 - Waste Transport/Eastern & C,Materials General,4040,1 PTO PUMP & 1 GASKET VO65 KPX JFC14527,27/05/2020,0000456361,"1,417.52",Revenue,DENNIS EAGLE LTD,00019774
South Ribble Council,http://statistics.data.gov.uk/doc/local-authority/30UN,Area 2 - Waste Transport/Eastern & C,Materials General,4040,6 SLIDE BLOCKS @ 36.61 VO65 KPX JFC14650,29/05/2020,0000456635,219.68,Revenue,DENNIS EAGLE LTD,00019774
South Ribble Council,http://statistics.data.gov.uk/doc/local-authority/30UN,Area 2 - Waste Transport/Eastern & C,Materials General,4040,2 SLIDE BLOCKS @ 55.98 VO65 KPX,29/05/2020,0000456635,111.97,Revenue,DENNIS EAGLE LTD,00019774
South Ribble Council,http://statistics.data.gov.uk/doc/local-authority/30UN,Area 2 - Waste Transport/Eastern & C,External Contractors Charges,4570,Supply and fit new windscreen MX04 YNL JFC14500,13/05/2020,0000456194,268.00,Revenue,DIRECT VEHICLE GLASS,00100803
South Ribble Council,http://statistics.data.gov.uk/doc/local-authority/30UN,Scrutiny,Subs to Statutory Bodies,4720,ANNUAL MEMBERSHIP SUBSCRIPTION RENEWAL FOR 2020-2021,13/05/2020,0000456350,"1,105.00",Revenue,District Councils` Network,132234
South Ribble Council,http://statistics.data.gov.uk/doc/local-authority/30UN,Information Services,Peripherals,4248,"10 x Data Publisher - Data Slots @ 16.50 each and 10 x Data Publisher - Data Slots @ 33.00 each, 11/04/20 - 10/04/21, as per quote 117283",01/05/2020,0000455948,495.00,Revenue,Dotted Eyes Ltd,131106
South Ribble Council,http://statistics.data.gov.uk/doc/local-authority/30UN,Shared Assurance Services,Agency Fees,1121,Provision of an Interim Auditor,06/05/2020,0000455440,"1,175.06",Revenue,Eden Brown,132982
South Ribble Council,http://statistics.data.gov.uk/doc/local-authority/30UN,Shared Assurance Services,Agency Fees,1121,Provision of an Interim Auditor,06/05/2020,0000455942,"1,201.56",Revenue,Eden Brown,132982
South Ribble Council,http://statistics.data.gov.uk/doc/local-authority/30UN,Shared Assurance Services,Agency Fees,1121,Provision of an Interim Auditor,06/05/2020,0000456000,"1,466.61",Revenue,Eden Brown,132982
South Ribble Council,http://statistics.data.gov.uk/doc/local-authority/30UN,Shared Assurance Services,Agency Fees,1121,Provision of an Interim Auditor,06/05/2020,0000456021,"1,484.28",Revenue,Eden Brown,132982
South Ribble Council,http://statistics.data.gov.uk/doc/local-authority/30UN,Shared Assurance Services,Agency Fees,1121,Provision of an Interim Auditor,06/05/2020,0000456141,"1,431.27",Revenue,Eden Brown,132982
South Ribble Council,http://statistics.data.gov.uk/doc/local-authority/30UN,Information Services,Peripherals,4260,01 may 2020,13/05/2020,0000456345,"4,210.08",Revenue,EE Ltd,131653
South Ribble Council,http://statistics.data.gov.uk/doc/local-authority/30UN,Area 3 - Parks/Leyland East West,Grounds Maint Cntrctrs Chgs,4657,provision of new supply,27/05/2020,0000456633,"3,132.87",Revenue,ELECTRICITY NORTH WEST LTD,00120142
South Ribble Council,http://statistics.data.gov.uk/doc/local-authority/30UN,Property Services,Rep & Maint Premises,2020,Please supply blinds for labour leaders room as per NAME REDACTED,27/05/2020,0000456657,350.00,Revenue,EMPORIUM BLINDS UK,131036
South Ribble Council,http://statistics.data.gov.uk/doc/local-authority/30UN,Area 2 - Waste Transport/Eastern & C,Materials General,4040,1 fuel tank VU11 HSZ JFC14515,06/05/2020,0000456053,325.00,Revenue,Euro Municipals Ltd,132810
South Ribble Council,http://statistics.data.gov.uk/doc/local-authority/30UN,Area 2 - Waste Transport/Eastern & C,Materials General,4040,2 CLAMP SPRINGS  VK09 AHJ JFC14502,06/05/2020,0000456053,250.00,Revenue,Euro Municipals Ltd,132810
South Ribble Council,http://statistics.data.gov.uk/doc/local-authority/30UN,Area 2 - Waste Transport/Eastern & C,Printing,4127,SUPPLY & DELIVERY OF GARDEN WASTE PERMITS AS PER QUOTE 23.8.19 TO COVER JAN TO DEC 2020,07/05/2020,0000456274,"6,102.80",Revenue,Euro Print Labels,132447
South Ribble Council,http://statistics.data.gov.uk/doc/local-authority/30UN,Regeneration,Other Misc,4851,Supplies as part of the Coronavirus Action Plan,01/05/2020,0000456117,"1,994.10",Revenue,Ewood Foods,133075
South Ribble Council,http://statistics.data.gov.uk/doc/local-authority/30UN,Information Services,Peripherals,4248,"Bank Wizard annual renewal, Account D1570",20/05/2020,0000456548,"4,157.04",Revenue,EXPERIAN LTD,00094045
South Ribble Council,http://statistics.data.gov.uk/doc/local-authority/30UN,Area 2 - Waste Transport/Eastern & C,Materials General,4040,1 x STEERING RAM PO16 HMY JFC14557,20/05/2020,0000456229,269.42,Revenue,F R SHARROCK LTD,00034539
South Ribble Council,http://statistics.data.gov.uk/doc/local-authority/30UN,Area 2 - Waste Transport/Eastern & C,Materials General,4040,1 HYDRAULIC OIL TANK PO16 HMU JFC14619,29/05/2020,0000456513,330.80,Revenue,F R SHARROCK LTD,00034539
South Ribble Council,http://statistics.data.gov.uk/doc/local-authority/30UN,Area 2 - Waste Transport/Eastern & C,Materials General,4040,1 cutting cylinder PO19 FDU JFC14630,29/05/2020,0000456579,270.97,Revenue,F R SHARROCK LTD,00034539
South Ribble Council,http://statistics.data.gov.uk/doc/local-authority/30UN,Area 2 - Waste Transport/Eastern & C,Materials General,4040,Supply and fit hose and cable to PO13 UUM - JFC10465 Original work carried out August 2018 (invoice never received),27/05/2020,0000456601,396.78,Revenue,Farid Hillend Engineering Limited,130575
South Ribble Council,http://statistics.data.gov.uk/doc/local-authority/30UN,Area 2 - Waste Transport/Eastern & C,External Contractors Charges,4570,Residual Waste Collections April 2020,22/05/2020,0000456353,"44,188.02",Revenue,FCC Environment Services (UK) Ltd,131612
South Ribble Council,http://statistics.data.gov.uk/doc/local-authority/30UN,Area 2 - Waste Transport/Eastern & C,External Contractors Charges,4570,Dry recyclable non-terraced April 2020,22/05/2020,0000456353,"45,238.56",Revenue,FCC Environment Services (UK) Ltd,131612
South Ribble Council,http://statistics.data.gov.uk/doc/local-authority/30UN,Area 2 - Waste Transport/Eastern & C,External Contractors Charges,4570,Dry recyclable terraced - April 2020,22/05/2020,0000456353,"2,152.65",Revenue,FCC Environment Services (UK) Ltd,131612
South Ribble Council,http://statistics.data.gov.uk/doc/local-authority/30UN,Area 2 - Waste Transport/Eastern & C,External Contractors Charges,4570,Organic Waste (non-terraced) April 2020,22/05/2020,0000456353,"31,326.88",Revenue,FCC Environment Services (UK) Ltd,131612
South Ribble Council,http://statistics.data.gov.uk/doc/local-authority/30UN,Area 2 - Waste Transport/Eastern & C,External Contractors Charges,4570,Schedule 2 properties April 2020,22/05/2020,0000456353,"1,800.34",Revenue,FCC Environment Services (UK) Ltd,131612
South Ribble Council,http://statistics.data.gov.uk/doc/local-authority/30UN,Area 2 - Waste Transport/Eastern & C,External Contractors Charges,4570,Commercial waste collections April 2020,22/05/2020,0000456353,"7,016.08",Revenue,FCC Environment Services (UK) Ltd,131612
South Ribble Council,http://statistics.data.gov.uk/doc/local-authority/30UN,Area 2 - Waste Transport/Eastern & C,External Contractors Charges,4570,Bulky waste collections April 2020,22/05/2020,0000456353,973.14,Revenue,FCC Environment Services (UK) Ltd,131612
South Ribble Council,http://statistics.data.gov.uk/doc/local-authority/30UN,Area 2 - Waste Transport/Eastern & C,External Contractors Charges,4570,WEEE collections April 2020,22/05/2020,0000456353,365.30,Revenue,FCC Environment Services (UK) Ltd,131612
South Ribble Council,http://statistics.data.gov.uk/doc/local-authority/30UN,Area 2 - Waste Transport/Eastern & C,External Contractors Charges,4570,Clinical waste collections April 2020,22/05/2020,0000456353,622.30,Revenue,FCC Environment Services (UK) Ltd,131612
South Ribble Council,http://statistics.data.gov.uk/doc/local-authority/30UN,Area 2 - Waste Transport/Eastern & C,External Contractors Charges,4570,Replacement bins April 2020,22/05/2020,0000456353,"5,000.00",Revenue,FCC Environment Services (UK) Ltd,131612
South Ribble Council,http://statistics.data.gov.uk/doc/local-authority/30UN,Area 2 - Waste Transport/Eastern & C,External Contractors Charges,4570,Additional bins April 2020,22/05/2020,0000456353,"2,846.81",Revenue,FCC Environment Services (UK) Ltd,131612
South Ribble Council,http://statistics.data.gov.uk/doc/local-authority/30UN,Area 2 - Waste Transport/Eastern & C,Balance Sheet,0030,retention fee,22/05/2020,0000456353,"-2,890.60",Revenue,FCC Environment Services (UK) Ltd,131612
South Ribble Council,http://statistics.data.gov.uk/doc/local-authority/30UN,Area 2 - Waste Transport/Eastern & C,Balance Sheet,0030,retention fee,22/05/2020,0000456353,"-3,935.90",Revenue,FCC Environment Services (UK) Ltd,131612
South Ribble Council,http://statistics.data.gov.uk/doc/local-authority/30UN,Information Services,Peripherals,4248,"Azure connectivity fee 1,575.00 and Project Management 237.00, as per quote",22/05/2020,0000456571,"1,812.00",Revenue,FIRMSTEP,00114022
South Ribble Council,http://statistics.data.gov.uk/doc/local-authority/30UN,Healthy Communities,Consultancy Fees,4541,"Leisure Management consultancy work. 1st March - 30th April 2020 inc work on management, leisure strategic business case and COVID support",27/05/2020,0000456631,"6,575.00",Revenue,FMG Consulting Ltd,133044
South Ribble Council,http://statistics.data.gov.uk/doc/local-authority/30UN,Neighbourhood Admin & Support,Vehicle Running Costs,3131,Fuel w/c 4.5.20,15/05/2020,0000456482,348.14,Revenue,Fuel Card Services,132365
South Ribble Council,http://statistics.data.gov.uk/doc/local-authority/30UN,Neighbourhood Admin & Support,Vehicle Running Costs,3131,Fuel w/c 11.5.20,27/05/2020,0000456588,288.69,Revenue,Fuel Card Services,132365
South Ribble Council,http://statistics.data.gov.uk/doc/local-authority/30UN,Area 2 - Waste Transport/Eastern & C,Materials General,4040,"2 SAFETY ARMS G015 2 MARKER LIGHT RED/WHITE G018
YA19 NKD
JFC14498",13/05/2020,0000456115,344.88,Revenue,GEESINK NORBA LTD,132941
South Ribble Council,http://statistics.data.gov.uk/doc/local-authority/30UN,Area 2 - Waste Transport/Eastern & C,Materials General,4040,1 SAFETY ARM G015 YD19 ATZ JFC14514,13/05/2020,0000456115,118.82,Revenue,GEESINK NORBA LTD,132941
South Ribble Council,http://statistics.data.gov.uk/doc/local-authority/30UN,Area 2 - Waste Transport/Eastern & C,Materials General,4040,"1 hopper seal, 1 x lower strip YA19 NJZ JFC14501",20/05/2020,0000456116,151.32,Revenue,GEESINK NORBA LTD,132941
South Ribble Council,http://statistics.data.gov.uk/doc/local-authority/30UN,Area 2 - Waste Transport/Eastern & C,Materials General,4040,6 pressure filter G029,20/05/2020,0000456116,651.84,Revenue,GEESINK NORBA LTD,132941
South Ribble Council,http://statistics.data.gov.uk/doc/local-authority/30UN,Area 2 - Waste Transport/Eastern & C,Materials General,4040,6 RETURN FILTER G026,20/05/2020,0000456116,715.38,Revenue,GEESINK NORBA LTD,132941
South Ribble Council,http://statistics.data.gov.uk/doc/local-authority/30UN,Legal,Legal,4821,"PROFESSIONAL SERVICES BY NAME REDACTED, INVESTIGATOR ON A REDACTED MATTER FROM APRIL 2020 ONWARDS",01/05/2020,0000456049,"8,521.70",Revenue,GELDARDS LLP,133028
South Ribble Council,http://statistics.data.gov.uk/doc/local-authority/30UN,Property Services,Rep & Maint Premises,2020,"Please provide  structural calculations for Moss Side Deport Garage, workshop and mezzanine floor  as per NAME REDACTED",06/05/2020,0000456177,"2,300.00",Revenue,GRAHAM SCHOFIELD ASSOCIATES,00035334
South Ribble Council,http://statistics.data.gov.uk/doc/local-authority/30UN,Shared Financial Services,Pensions Increase Act Payme,1701,Rechargeable Pension Costs 2020-21,06/05/2020,0000456235,"6,835.87",Revenue,GREATER MANCHESTER PENSION FUND,00022538
South Ribble Council,http://statistics.data.gov.uk/doc/local-authority/30UN,Revenues Plus,Professional Fees,4510,Bankruptcy and Charging Order costs,20/05/2020,0000456475,"2,566.50",Revenue,Greenhalgh Kerr,132061
South Ribble Council,http://statistics.data.gov.uk/doc/local-authority/30UN,Revenues Plus,Professional Fees,4510,vat items,20/05/2020,0000456475,774.00,Revenue,Greenhalgh Kerr,132061
South Ribble Council,http://statistics.data.gov.uk/doc/local-authority/30UN,Area 2 - Waste Transport/Eastern & C,Materials General,4040,EKBS DENNIS/VOLVO BRAKE PAD KIT BIN 539,27/05/2020,0000456611,340.00,Revenue,H & J SERVICES LTD,00114446
South Ribble Council,http://statistics.data.gov.uk/doc/local-authority/30UN,Shared Assurance Services,Agency Fees,1121,"Internal Auditor - NAME REDACTED for 8/11/19 - 27/03/19 (excluding Christmas closedown) 37 hrs x 41.43 - 1532.91 x 20 weeks = 30,658.2",06/05/2020,0000455615,"1,215.98",Revenue,Hays Specialist Recruitment Ltd,132288
South Ribble Council,http://statistics.data.gov.uk/doc/local-authority/30UN,Shared Assurance Services,Agency Fees,1121,"Internal Auditor - NAME REDACTED for 8/11/19 - 27/03/19 (excluding Christmas closedown) 37 hrs x 41.43 - 1532.91 x 20 weeks = 30,658.2",06/05/2020,0000455730,"1,243.73",Revenue,Hays Specialist Recruitment Ltd,132288
South Ribble Council,http://statistics.data.gov.uk/doc/local-authority/30UN,Shared Assurance Services,Agency Fees,1121,"Internal Auditor - NAME REDACTED for 8/11/19 - 27/03/19 (excluding Christmas closedown) 37 hrs x 41.43 - 1532.91 x 20 weeks = 30,658.2",06/05/2020,0000455737,"1,257.40",Revenue,Hays Specialist Recruitment Ltd,132288
South Ribble Council,http://statistics.data.gov.uk/doc/local-authority/30UN,Shared Assurance Services,Agency Fees,1121,"Internal Auditor - NAME REDACTED for 8/11/19 - 27/03/19 (excluding Christmas closedown) 37 hrs x 41.43 - 1532.91 x 20 weeks = 30,658.2",06/05/2020,0000455741,"1,255.33",Revenue,Hays Specialist Recruitment Ltd,132288
South Ribble Council,http://statistics.data.gov.uk/doc/local-authority/30UN,Shared Financial Services,Balance Sheet,0140,,20/05/2020,0000455275,"1,817.93",Revenue,HM REVENUE & CUSTOMS,00024837
South Ribble Council,http://statistics.data.gov.uk/doc/local-authority/30UN,Area 2 - Waste Transport/Eastern & C,External Contractors Charges,4570,Spec repair AE14 AYG JFC13971,13/05/2020,0000456352,954.75,Revenue,Holdens CVE Limited,132119
South Ribble Council,http://statistics.data.gov.uk/doc/local-authority/30UN,Legal,Legal,4821,PROFESSIONAL SERVICES REGARDING AN APPEAL IN RESPECT OF ADDRESS REDACTED,06/05/2020,0000456137,500.00,Revenue,HUGH DERBYSHIRE,133036
South Ribble Council,http://statistics.data.gov.uk/doc/local-authority/30UN,Planning,Advertising,4841,Press Notices in the Lancashire Evening Post for planning applications April 2020 to March 2021,01/05/2020,0000455617,972.00,Revenue,JPI Media - JOHNSTON PUBLISHING (NORTH WEST),00011345
South Ribble Council,http://statistics.data.gov.uk/doc/local-authority/30UN,Planning,Advertising,4841,Press Notices in the Lancashire Evening Post for planning applications April 2020 to March 2021,06/05/2020,0000456182,729.00,Revenue,JPI Media - JOHNSTON PUBLISHING (NORTH WEST),00011345
South Ribble Council,http://statistics.data.gov.uk/doc/local-authority/30UN,Planning,Advertising,4841,Press Notices in the Lancashire Evening Post for planning applications April 2020 to March 2021,29/05/2020,0000456628,810.00,Revenue,JPI Media - JOHNSTON PUBLISHING (NORTH WEST),00011345
South Ribble Council,http://statistics.data.gov.uk/doc/local-authority/30UN,Planning,Advertising,4841,Press Notices in the Lancashire Evening Post for planning applications April 2020 to March 2021,29/05/2020,0000456629,729.00,Revenue,JPI Media - JOHNSTON PUBLISHING (NORTH WEST),00011345
South Ribble Council,http://statistics.data.gov.uk/doc/local-authority/30UN,Area 2 - Waste Transport/Eastern & C,Cap Vehicles,C440,Livery on 4 x RCVs as per your quote dated 1.4.20,15/05/2020,0000456228,440.00,Revenue,KDJ Dezigns LTD T/A Sign Dezign,132993
South Ribble Council,http://statistics.data.gov.uk/doc/local-authority/30UN,Property Services,Other Misc,4851,Please supply 8x 5 litre hand sanitiser gel at 40 each. The total value of the order is 320 as requested by NAME REDACTED,01/05/2020,0000456022,320.00,Revenue,KEY ENGINEERING & HYGIENE SUPPLIES LTD,00083658
South Ribble Council,http://statistics.data.gov.uk/doc/local-authority/30UN,Homelessness,Contributions,4730,6 months pre-tenancy training April to Sept 2020,13/05/2020,0000456398,"2,500.00",Revenue,KEY UNLOCKING FUTURES LTD,00098601
South Ribble Council,http://statistics.data.gov.uk/doc/local-authority/30UN,Homelessness,Contributions,4730,Housing advice and mediation Q2 April to June 20/21,13/05/2020,0000456399,"4,875.00",Revenue,KEY UNLOCKING FUTURES LTD,00098601
South Ribble Council,http://statistics.data.gov.uk/doc/local-authority/30UN,Homelessness,Contributions,4730,Tenancy support Q1 June to August 20/21,13/05/2020,0000456400,"4,875.00",Revenue,KEY UNLOCKING FUTURES LTD,00098601
South Ribble Council,http://statistics.data.gov.uk/doc/local-authority/30UN,Property Services,Other Misc,4851,"Please supply the following as per NAME REDACTED It is going to be charged on the covid code, Order value 895.00 For 500 IRR masks",01/05/2020,0000455935,895.00,Revenue,Kingswood Office Supplies,133083
South Ribble Council,http://statistics.data.gov.uk/doc/local-authority/30UN,Property Services,Other Misc,4851,cancelled out t,13/05/2020,0000456203,495.00,Revenue,Kingswood Office Supplies,133083
South Ribble Council,http://statistics.data.gov.uk/doc/local-authority/30UN,Area 2 - Waste Transport/Eastern & C,Materials General,4040,3000 litres bulk Ad blue @ 0.22 ppl,22/05/2020,0000456595,672.76,Revenue,LANCASHIRE OILS LTD,131167
South Ribble Council,http://statistics.data.gov.uk/doc/local-authority/30UN,Housing,Cap Grant- Improve Grants,C570,DFG WORKS TO SUPPLY AND INSTALL A STAIRLIFT AT ADDRESS REDACTED AS PER QUOTE SUPPLIED OF 6642.00,01/05/2020,0000456109,"6,642.00",Revenue,LANCS COUNTY COUNCIL,00041645
South Ribble Council,http://statistics.data.gov.uk/doc/local-authority/30UN,Housing,Cap Grant- Improve Grants,C570,DFG WORKS TO SUPPLY AND INSTALL STAIRLIFT AT ADDRESS REDACTED AS PER QUOTE SUPPLIED VIA LCC OF 6821.00,07/05/2020,0000456265,"5,287.20",Revenue,LANCS COUNTY COUNCIL,00041645
South Ribble Council,http://statistics.data.gov.uk/doc/local-authority/30UN,Legal,Other Local Authorities,4530,LAND CHARGES - APRIL 2020,13/05/2020,0000456275,341.00,Revenue,LANCS COUNTY COUNCIL,00041645
South Ribble Council,http://statistics.data.gov.uk/doc/local-authority/30UN,Regeneration,Other Misc,4851,Covid19 Supplies,27/05/2020,0000456577,"1,269.35",Revenue,LANCS COUNTY COUNCIL,00041645
South Ribble Council,http://statistics.data.gov.uk/doc/local-authority/30UN,Area 2 - Waste Transport/Eastern & C,Materials General,4040,2 batteries RV14 DTZ JFC14542,13/05/2020,0000456295,268.11,Revenue,LANCS DAF,00026424
South Ribble Council,http://statistics.data.gov.uk/doc/local-authority/30UN,Area 2 - Waste Transport/Eastern & C,Materials General,4040,1 service pack YD19 ATZ JFC14571,29/05/2020,0000456613,386.18,Revenue,LANCS DAF,00026424
South Ribble Council,http://statistics.data.gov.uk/doc/local-authority/30UN,Regeneration,Professional Fees,4510,force through as per NAME REDACTED PO closed in error,01/05/2020,0000455807,"1,668.33",Revenue,LANCS WILDLIFE TRUST,00027009
South Ribble Council,http://statistics.data.gov.uk/doc/local-authority/30UN,Legal,Subs to Statutory Bodies,4720,COURSE 6-10LA: LOCAL AUTHORITY MEMBERSHIP 6-10 MEMBERS ANNUAL SUBSCRIPTION 1 APRIL 2020 - 31 MARCH 2021,06/05/2020,0000456148,515.00,Revenue,LAWYERS IN LOCAL GOVERMENT,130885
South Ribble Council,http://statistics.data.gov.uk/doc/local-authority/30UN,Property Services,Rep & Maint Premises,2020,Please attend ADDRESS REDACTED This is for safety reasons. Carry out works as per NAME REDACTED to prevent becoming stuck,15/05/2020,0000456401,"1,785.00",Revenue,Leyland Lane Wrought Iron Gates & Railings,132012
South Ribble Council,http://statistics.data.gov.uk/doc/local-authority/30UN,Area 3 - Parks/Leyland East West,Grounds Maint Cntrctrs Chgs,4657,20T 20mm - DUST BLUE GRANITE,06/05/2020,0000456152,406.00,Revenue,M C & M A STEWART HAULAGE LTD,00035567
South Ribble Council,http://statistics.data.gov.uk/doc/local-authority/30UN,Area 3 - Parks/Leyland East West,Materials General,4040,20 TONS GRADE 1 TOP SOIL - DELIVER TO WORDEN PARK BONFIRE AREA.,06/05/2020,0000456153,460.00,Revenue,M C & M A STEWART HAULAGE LTD,00035567
South Ribble Council,http://statistics.data.gov.uk/doc/local-authority/30UN,Area 3 - Parks/Leyland East West,Grounds Maint Cntrctrs Chgs,4657,20x Tonnes Limestone Dust @ 22.30 per tonne delivered to Worden Park Depot. Please contact NAME REDACTED prior to deliver 625561.,06/05/2020,0000456154,433.07,Revenue,M C & M A STEWART HAULAGE LTD,00035567
South Ribble Council,http://statistics.data.gov.uk/doc/local-authority/30UN,Area 3 - Parks/Leyland East West,Grounds Maint Cntrctrs Chgs,4657,10 TONS GRADE 1 TOP SOIL @ 34 per ton,06/05/2020,0000456155,345.44,Revenue,M C & M A STEWART HAULAGE LTD,00035567
South Ribble Council,http://statistics.data.gov.uk/doc/local-authority/30UN,Information Services,Peripherals,4248,"Renewal of the Siemens Hipath and Tiger Call Logger from 1 May 2020 to 30 April 2021, as per quote ref: 0056859",13/05/2020,0000456333,"10,955.70",Revenue,Maintel Europe Ltd,132500
South Ribble Council,http://statistics.data.gov.uk/doc/local-authority/30UN,Development Enterprise & Comm Mgnt,Other Misc,485I,"Visitor Economy and Place Promotion Support 2020/21 Payment inc STEAM monitoring and marketing campaign. Partnership price 2,650",22/05/2020,0000456528,"2,650.00",Revenue,MARKETING LANCASHIRE LIMITED,00089885
South Ribble Council,http://statistics.data.gov.uk/doc/local-authority/30UN,Chief Executive`s Management,Professional Fees,4510,Settlement,01/05/2020,0000456028,"19,448.10",Revenue,MENRVA Limited,132359
South Ribble Council,http://statistics.data.gov.uk/doc/local-authority/30UN,Chief Executive`s Management,Professional Fees,4510,Settlement,01/05/2020,0000456029,"1,044.20",Revenue,MENRVA Limited,132359
South Ribble Council,http://statistics.data.gov.uk/doc/local-authority/30UN,Chief Executive`s Management,Professional Fees,4510,Settlement,01/05/2020,0000456030,"3,800.00",Revenue,MENRVA Limited,132359
South Ribble Council,http://statistics.data.gov.uk/doc/local-authority/30UN,Property Services,Capital Expenditure,C230,"To remove and re-roof, fire lining & plastering the Derby Wing tank room roof",01/05/2020,0000456110,"2,800.00",Revenue,Mick Bamber,132873
South Ribble Council,http://statistics.data.gov.uk/doc/local-authority/30UN,Property Services,Rep & Maint Premises,2020,Please attend Worden Park and carry out roof repair to outbuilding at Derby Wing as per estimate 1010,01/05/2020,0000456111,600.00,Revenue,Mick Bamber,132873
South Ribble Council,http://statistics.data.gov.uk/doc/local-authority/30UN,Property Services,Rep & Maint Premises,2020,Please attend Leyland Market as per Quotation dated 1st Nov 2019 to fix the roof leak as per NAME REDACTED,01/05/2020,0000456112,"5,400.00",Revenue,Mick Bamber,132873
South Ribble Council,http://statistics.data.gov.uk/doc/local-authority/30UN,Property Services,Rep & Maint Premises,2020,Please attend ADDRESS REDACTED and investigate and repair leak to roof as per NAME REDACTED,01/05/2020,0000456118,300.00,Revenue,Mick Bamber,132873
South Ribble Council,http://statistics.data.gov.uk/doc/local-authority/30UN,Property Services,Rep & Maint Premises,2020,Please attend Avacab - Moss Side and carry out works to roof repair  as per estimate 1012 dated 6th Jan 2020,01/05/2020,0000456119,"4,900.00",Revenue,Mick Bamber,132873
South Ribble Council,http://statistics.data.gov.uk/doc/local-authority/30UN,Property Services,Rep & Maint Premises,2020,Please attend ADDRESS REDACTED to undertake replace section of the gutters and downspouts as per estimate ref 1010,01/05/2020,0000456120,600.00,Revenue,Mick Bamber,132873
South Ribble Council,http://statistics.data.gov.uk/doc/local-authority/30UN,Area 2 - Waste Transport/Eastern & C,External Contractors Charges,4570,supply and fit LED beacons VO65 KRD JFC14496,06/05/2020,0000455990,200.00,Revenue,MJC Auto Electrics,132514
South Ribble Council,http://statistics.data.gov.uk/doc/local-authority/30UN,Area 2 - Waste Transport/Eastern & C,External Contractors Charges,4570,supply and fit LED beacons VO65 KPX JFC14497,06/05/2020,0000455990,200.00,Revenue,MJC Auto Electrics,132514
South Ribble Council,http://statistics.data.gov.uk/doc/local-authority/30UN,Area 2 - Waste Transport/Eastern & C,External Contractors Charges,4570,Supply and fit LED Beacons VO65KRF JFC14559,15/05/2020,0000456362,200.00,Revenue,MJC Auto Electrics,132514
South Ribble Council,http://statistics.data.gov.uk/doc/local-authority/30UN,Area 2 - Waste Transport/Eastern & C,External Contractors Charges,4570,Supply and fit LED Beacons VO65 KRE JFC14568,15/05/2020,0000456362,200.00,Revenue,MJC Auto Electrics,132514
South Ribble Council,http://statistics.data.gov.uk/doc/local-authority/30UN,Area 1 - Penwortham Western Parishe,Professional Fees,4521,PROVISION OF STRAY DOG SERVICE FEBRUARY 2020,01/05/2020,0000454990,605.50,Revenue,MORNINGSIDE KENNELS,00067755
South Ribble Council,http://statistics.data.gov.uk/doc/local-authority/30UN,Area 1 - Penwortham Western Parishe,Professional Fees,4521,PROVISION OF STRAY DOG SERVICE MARCH 2020,01/05/2020,0000454991,561.11,Revenue,MORNINGSIDE KENNELS,00067755
South Ribble Council,http://statistics.data.gov.uk/doc/local-authority/30UN,Property Services,Other Misc,485R,refund of rental income fees,01/05/2020,0000455933,"11,330.00",Revenue,MOSS SIDE COMMUNITY FORUM,00098724
South Ribble Council,http://statistics.data.gov.uk/doc/local-authority/30UN,Revenues Plus,Balance Sheet,0001,,01/05/2020,0000456047,338.82,Revenue,Mr Adrian Oprea T/a Farington Chippy,133115
South Ribble Council,http://statistics.data.gov.uk/doc/local-authority/30UN,Legal,Legal,4821,JUDICIAL REVIEW IN RESPECT OF LAND TO THE SOUTH OF ADDRESS REDACTED,27/05/2020,0000456487,500.00,Revenue,Mr Alan Evans,131944
South Ribble Council,http://statistics.data.gov.uk/doc/local-authority/30UN,Legal,Legal,4821,PROFESSIONAL SERVICES IN RELATION TO HOMELESSNESS,29/05/2020,0000456684,"1,500.00",Revenue,Mr Simon Vaughan,132049
South Ribble Council,http://statistics.data.gov.uk/doc/local-authority/30UN,Area 2 - Waste Transport/Eastern & C,Contract Hire & Lease Costs,3212,Hire of RCV 16.3.20 - 20.3.20,06/05/2020,0000455997,340.00,Revenue,NAYLORS TRANSPORT (LEYLAND) ltd,00114828
South Ribble Council,http://statistics.data.gov.uk/doc/local-authority/30UN,Area 2 - Waste Transport/Eastern & C,Contract Hire & Lease Costs,3212,Hire of RCV VO61 YVE 6.3.20 - 10.3.20,06/05/2020,0000455999,608.00,Revenue,NAYLORS TRANSPORT (LEYLAND) ltd,00114828
South Ribble Council,http://statistics.data.gov.uk/doc/local-authority/30UN,Environmental Health,Contractors Charges 5,5310,Funeral for NAME REDACTED per NAME REDACTED.,22/05/2020,0000456576,"1,295.00",Revenue,NEAL BUCKLEY,130840
South Ribble Council,http://statistics.data.gov.uk/doc/local-authority/30UN,Regeneration,Other Misc,4851,"Installation of Christmas lights at Longton, Walmer Green and Tardy Gate, including dressing and un-dressing - as per last year",06/05/2020,0000456146,465.00,Revenue,NEWGATE NURSERIES,00069591
South Ribble Council,http://statistics.data.gov.uk/doc/local-authority/30UN,Regeneration,Other Misc,4851,Purchase of 500 Sunflower Seed packs at 50p each,22/05/2020,0000456511,580.00,Revenue,NEWGATE NURSERIES,00069591
South Ribble Council,http://statistics.data.gov.uk/doc/local-authority/30UN,Neighbourhood Admin & Support,External Contractors Charges,4570,Fuel pumps and ocio gauges service maintenance and calibration contract to include 2 site visits for service and calibration works.,06/05/2020,0000456105,825.00,Revenue,NIXON PUMPS,130367
South Ribble Council,http://statistics.data.gov.uk/doc/local-authority/30UN,Scrutiny,Subs to Statutory Bodies,4720,FULL MEMBERSHIP SUBSCRIPTION RENEWAL FOR APRIL 2020 - MARCH 2021,06/05/2020,0000456136,"4,195.05",Revenue,NORTH WEST EMPLOYERS,00029829
South Ribble Council,http://statistics.data.gov.uk/doc/local-authority/30UN,Area 1 - Penwortham Western Parishe,Professional Fees,4514,DEPLOYMENT OF OFFICERS APRIL 2020,07/05/2020,0000456276,"1,155.66",Revenue,NSL LTD,00116868
South Ribble Council,http://statistics.data.gov.uk/doc/local-authority/30UN,Area 1 - Penwortham Western Parishe,Other Misc,4855,CASH COLLECTION AND RINGO CHARGES APRIL 2020,07/05/2020,0000456276,206.19,Revenue,NSL LTD,00116868
South Ribble Council,http://statistics.data.gov.uk/doc/local-authority/30UN,Area 1 - Penwortham Western Parishe,Other Misc,4855,RINGO CONVENIENCE CHARGE APRIL 2020,07/05/2020,0000456276,4.59,Revenue,NSL LTD,00116868
South Ribble Council,http://statistics.data.gov.uk/doc/local-authority/30UN,Information Services,Peripherals,4247,Combined Services for period 01/07/20 - 31/03/21,22/05/2020,0000456553,"2,917.72",Revenue,NVIRON LTD,00028781
South Ribble Council,http://statistics.data.gov.uk/doc/local-authority/30UN,Information Services,Peripherals,4247,Combined Services for period 01/07/20 - 31/03/21,22/05/2020,0000456557,"4,945.15",Revenue,NVIRON LTD,00028781
South Ribble Council,http://statistics.data.gov.uk/doc/local-authority/30UN,Scrutiny,Subs to Statutory Bodies,4720,MEMBERSHIP SUBSCRIPTION FOR CO-OPERATIVE COUNCILS NETWORK FOR 2020,20/05/2020,0000456397,"1,830.00",Revenue,OLDHAM COUNCIL,133022
South Ribble Council,http://statistics.data.gov.uk/doc/local-authority/30UN,Property Services,Cleaning and Domestic Supplie,2711,BK140-5    JANGRO ALCOHOL GEL HAND RUB 5 LTR 70.00 Item 280.00 1(2) **DG**,06/05/2020,0000456103,280.00,Revenue,Pattersons (Bristol) Ltd,132621
South Ribble Council,http://statistics.data.gov.uk/doc/local-authority/30UN,Healthy Communities,Advertising,4842,Coordination of South Ribble Sports Awards 2020,27/05/2020,0000456607,"2,000.00",Revenue,Pennine Events,131103
South Ribble Council,http://statistics.data.gov.uk/doc/local-authority/30UN,HR & Communications,Employee Related Insurance,1819,GROUP LIFE ASSURANCE SCHEME (8519) - APRIL 2020 - MARCH 2021,13/05/2020,0000456102,"5,000.00",Revenue,PHOENIX LIFE LTD,00031532
South Ribble Council,http://statistics.data.gov.uk/doc/local-authority/30UN,Information Services,Peripherals,4243,"10 x Audio Conferencing Shared Server Subscription Per User - Licence @ 30.72 each, as per quote",06/05/2020,0000456179,307.20,Revenue,PHOENIX SOFTWARE LTD,00064279
South Ribble Council,http://statistics.data.gov.uk/doc/local-authority/30UN,Information Services,Peripherals,4243,"30 x Microsoft 365 E3 Shared Server All Language Subscription Per User - Licence  @ 166.70 each, as per quote 01168331",20/05/2020,0000456358,"5,001.00",Revenue,PHOENIX SOFTWARE LTD,00064279
South Ribble Council,http://statistics.data.gov.uk/doc/local-authority/30UN,Area 2 - Waste Transport/Eastern & C,External Contractors Charges,4570,TR216,01/05/2020,0000455941,630.11,Revenue,PRESTON TYRE SPECIALISTS,00109516
South Ribble Council,http://statistics.data.gov.uk/doc/local-authority/30UN,Area 2 - Waste Transport/Eastern & C,External Contractors Charges,4570,2 puncture repairs RV14 DTZ JFC14554,13/05/2020,0000456234,470.50,Revenue,PRESTON TYRE SPECIALISTS,00109516
South Ribble Council,http://statistics.data.gov.uk/doc/local-authority/30UN,Area 2 - Waste Transport/Eastern & C,External Contractors Charges,4570,TR218,29/05/2020,0000456653,442.10,Revenue,PRESTON TYRE SPECIALISTS,00109516
South Ribble Council,http://statistics.data.gov.uk/doc/local-authority/30UN,Information Services,Postage,4292, Franking  Machine top up payment plus charge for RM underpayment,07/05/2020,0000456293,"9,092.79",Revenue,Purchase Power,00093923
South Ribble Council,http://statistics.data.gov.uk/doc/local-authority/30UN,Area 2 - Waste Transport/Eastern & C,External Contractors Charges,4570,"Business breakdown cover - 4 vehicles Roadside, At Home & Recovery - 24 months Quotation No 00289372",22/05/2020,0000456500,312.40,Revenue,RAC Motoring Services,133068
South Ribble Council,http://statistics.data.gov.uk/doc/local-authority/30UN,Area 2 - Waste Transport/Eastern & C,External Contractors Charges,4570,non vat,22/05/2020,0000456500,208.32,Revenue,RAC Motoring Services,133068
South Ribble Council,http://statistics.data.gov.uk/doc/local-authority/30UN,HR & Communications,Training Expense-Course Fees,1402,EMAQ SUBSCRIPTION FOR TECHNICAL INFORMATION AND 12 SEMINAR PLACES - ENVIRONMENTAL HEALTH  (VARIOUS DATES) 2020,13/05/2020,0000456126,"2,036.00",Revenue,RICARDO-AEA LIMITED,130794
South Ribble Council,http://statistics.data.gov.uk/doc/local-authority/30UN,Legal,Legal,4821,PROVIDING ADVICE IN RELATION TO THE INVESTIGATION OF REDACTED,13/05/2020,0000456198,"1,125.00",Revenue,RICHARD PENN CONSULTANCY,133008
South Ribble Council,http://statistics.data.gov.uk/doc/local-authority/30UN,Information Services,Lease Rental Charges,4036,,15/05/2020,0000456461,333.20,Revenue,RICOH (UK) LTD,00082976
South Ribble Council,http://statistics.data.gov.uk/doc/local-authority/30UN,Information Services,Stationery,413A,,15/05/2020,0000456461,105.97,Revenue,RICOH (UK) LTD,00082976
South Ribble Council,http://statistics.data.gov.uk/doc/local-authority/30UN,Information Services,Lease Rental Charges,4036,1/5/20 to 31/7/20,20/05/2020,0000456533,"4,638.79",Revenue,RICOH (UK) LTD,00082976
South Ribble Council,http://statistics.data.gov.uk/doc/local-authority/30UN,Information Services,Stationery,413A,1/2/20 to 30/4/20,20/05/2020,0000456533,"4,069.82",Revenue,RICOH (UK) LTD,00082976
South Ribble Council,http://statistics.data.gov.uk/doc/local-authority/30UN,Information Services,Lease Rental Charges,4036,EQVs,20/05/2020,0000456537,"1,492.80",Revenue,RICOH (UK) LTD,00082976
South Ribble Council,http://statistics.data.gov.uk/doc/local-authority/30UN,Information Services,Stationery,413A,1/5/20 to 31/7/20,29/05/2020,0000456655,127.62,Revenue,RICOH (UK) LTD,00082976
South Ribble Council,http://statistics.data.gov.uk/doc/local-authority/30UN,Information Services,Lease Rental Charges,4036,1/4/20 to 30/4/20,29/05/2020,0000456655,334.19,Revenue,RICOH (UK) LTD,00082976
South Ribble Council,http://statistics.data.gov.uk/doc/local-authority/30UN,Area 2 - Waste Transport/Eastern & C,Contract Hire & Lease Costs,3212,RCV - GN19 HDX On hire 1.4.20 - 27.4.20 19 days @ 179 per day,20/05/2020,0000456101,"3,401.00",Revenue,RIVERSIDE TRUCK RENTAL LTD,132867
South Ribble Council,http://statistics.data.gov.uk/doc/local-authority/30UN,Area 2 - Waste Transport/Eastern & C,Contract Hire & Lease Costs,3212,Hire of 70/30 RCV HK18 EKX On Hire 29.4.20 @ 238.00 Delivery 75.00,13/05/2020,0000456232,476.00,Revenue,RIVERSIDE TRUCK RENTAL LTD,132867
South Ribble Council,http://statistics.data.gov.uk/doc/local-authority/30UN,Area 2 - Waste Transport/Eastern & C,Materials General,4040,1000 litres Energize� - Premium Hi-Foaming TFR with Wax (Super Conc.),27/05/2020,0000456610,911.15,Revenue,Saanro International Ltd,132788
South Ribble Council,http://statistics.data.gov.uk/doc/local-authority/30UN,Neighbourhood Admin & Support,Materials General,4040,306TGA111 - 100 ml  Hand Sanitiser (Pack of 20) as per your quotation 26016357,13/05/2020,0000456288,269.97,Revenue,SAFETY SHOP,130301
South Ribble Council,http://statistics.data.gov.uk/doc/local-authority/30UN,Neighbourhood Admin & Support,Materials General,4040,306TGA111- 100ML Hand Sanitiser (Pack of 20),15/05/2020,0000456474,449.95,Revenue,SAFETY SHOP,130301
South Ribble Council,http://statistics.data.gov.uk/doc/local-authority/30UN,Property Services,Professional Fees,4510,"Professional services in connection with the Eagle & Child, Leyland",07/05/2020,0000456238,"2,041.67",Revenue,Sanderson Weatherall LLP,132534
South Ribble Council,http://statistics.data.gov.uk/doc/local-authority/30UN,Property Services,Capital Expenditure,C230,Consultancy support to deliver the planning application for McKenzie Arms,20/05/2020,0000456280,"14,600.00",Revenue,Sanderson Weatherall LLP,132534
South Ribble Council,http://statistics.data.gov.uk/doc/local-authority/30UN,Property Services,Professional Fees,4510,Professional services in relation to the property portfolio,20/05/2020,0000456428,"2,179.88",Revenue,Sanderson Weatherall LLP,132534
South Ribble Council,http://statistics.data.gov.uk/doc/local-authority/30UN,Property Services,Professional Fees,4510,non vat,20/05/2020,0000456428,3.00,Revenue,Sanderson Weatherall LLP,132534
South Ribble Council,http://statistics.data.gov.uk/doc/local-authority/30UN,Property Services,Professional Fees,4510,Professional services in relation to the property portfolio,20/05/2020,0000456433,683.33,Revenue,Sanderson Weatherall LLP,132534
South Ribble Council,http://statistics.data.gov.uk/doc/local-authority/30UN,Property Services,Balance Sheet,0030,"Professional services & disbursements in relation to Test Track, Leyland.",22/05/2020,0000456447,"4,548.29",Revenue,Sanderson Weatherall LLP,132534
South Ribble Council,http://statistics.data.gov.uk/doc/local-authority/30UN,Property Services,Capital Expenditure,C230,"Costs relating to McKenzie Arms Site Investigation 3,890 Noise Impact 1,685 Air Quality 1,465 M&E Envision 7,100 Tree Survey 458.85",20/05/2020,0000456472,"7,100.00",Revenue,Sanderson Weatherall LLP,132534
South Ribble Council,http://statistics.data.gov.uk/doc/local-authority/30UN,Property Services,Capital Expenditure,C230,po used agaist inv New13177 to be cancel by CNEW13177,22/05/2020,0000456479,"7,500.00",Revenue,Sanderson Weatherall LLP,132534
South Ribble Council,http://statistics.data.gov.uk/doc/local-authority/30UN,Planning,Operational Furniture & Equip,4010,Lease rental of HP XL 3600 Wide format printer and insurance charge. Period 14th May to 13th August,22/05/2020,0000456499,"1,015.29",Revenue,Siemens Financial Services Limited,133066
South Ribble Council,http://statistics.data.gov.uk/doc/local-authority/30UN,Property Services,Other Misc,4851,Please supply 30 boxes of gloves. The total value of the order is 297 as per NAME REDACTED,06/05/2020,0000456145,297.00,Revenue,SMART IMAGE WORKWEAR,00031503
South Ribble Council,http://statistics.data.gov.uk/doc/local-authority/30UN,Neighbourhood Admin & Support,Clothing- Uniforms & Laundry,4410,Flame Retardant Coverall - PORTWEST BIZ 7  - LARGE with SRBC Logo,13/05/2020,0000456355,835.20,Revenue,SMART IMAGE WORKWEAR,00031503
South Ribble Council,http://statistics.data.gov.uk/doc/local-authority/30UN,Neighbourhood Admin & Support,Clothing- Uniforms & Laundry,4410,Flame Retardant Coverall - PORTWEST BIZ 7  - XXLARGE  with SRBC Logo,13/05/2020,0000456355,208.80,Revenue,SMART IMAGE WORKWEAR,00031503
South Ribble Council,http://statistics.data.gov.uk/doc/local-authority/30UN,Neighbourhood Admin & Support,Clothing- Uniforms & Laundry,4410, BOOTS � ROCKFALL EBONITE - SIZE 9 - FROCKEBON,13/05/2020,0000456355,139.60,Revenue,SMART IMAGE WORKWEAR,00031503
South Ribble Council,http://statistics.data.gov.uk/doc/local-authority/30UN,Neighbourhood Admin & Support,Clothing- Uniforms & Laundry,4410,DISPOSABLE NITRILE GLOVES - SIZE MEDIUM,15/05/2020,0000456471,178.20,Revenue,SMART IMAGE WORKWEAR,00031503
South Ribble Council,http://statistics.data.gov.uk/doc/local-authority/30UN,Neighbourhood Admin & Support,Clothing- Uniforms & Laundry,4410,DISPOSABLE NITRILE GLOVES - SIZE LARGE,15/05/2020,0000456471,356.40,Revenue,SMART IMAGE WORKWEAR,00031503
South Ribble Council,http://statistics.data.gov.uk/doc/local-authority/30UN,Neighbourhood Admin & Support,Clothing- Uniforms & Laundry,4410,DISPOSABLE NITRILE GLOVES - SIZE EXTRA LARGE,15/05/2020,0000456471,356.40,Revenue,SMART IMAGE WORKWEAR,00031503
South Ribble Council,http://statistics.data.gov.uk/doc/local-authority/30UN,Homelessness,Other Misc,4851,Placement for NAME REDACTED 14 nights at ADDRESS REDACTED Ongoing placement,01/05/2020,0000456023,350.00,Revenue,SMITHY LODGE GUEST HOUSE,130562
South Ribble Council,http://statistics.data.gov.uk/doc/local-authority/30UN,Homelessness,Other Misc,4851,Covid 19 placements x5 ADDRESS REDACTED NAMES REDACTED 19-25th April 20,13/05/2020,0000456090,"1,750.00",Revenue,SMITHY LODGE GUEST HOUSE,130562
South Ribble Council,http://statistics.data.gov.uk/doc/local-authority/30UN,Homelessness,Contractors Charges 5,5311,26th April to 2nd May 2020 inclusive = 7 nights TA placements NAMES REDACTED 50 pppn x7nights,06/05/2020,0000456233,"1,750.00",Revenue,SMITHY LODGE GUEST HOUSE,130562
South Ribble Council,http://statistics.data.gov.uk/doc/local-authority/30UN,Shared Financial Services,Balance Sheet,0030,monthly deductions from payroll,13/05/2020,0000455985,"1,486.62",Revenue,SOUTH RIBBLE LABOUR PARTY LOCAL GOVERNM,00120663
South Ribble Council,http://statistics.data.gov.uk/doc/local-authority/30UN,Property Services,Subs to Statutory Bodies,4720,To provide 2020 / 2021  associate membership services for South Ribble Borough Council,15/05/2020,0000456417,500.00,Revenue,Sports & Recreation Trusts Association,132920
South Ribble Council,http://statistics.data.gov.uk/doc/local-authority/30UN,Shared Financial Services,Balance Sheet,0030,monthly deductions from payroll,06/05/2020,0000455995,434.00,Revenue,ST CATHERINES HOSPICE PROMOTIONS LTD,00057749
South Ribble Council,http://statistics.data.gov.uk/doc/local-authority/30UN,Neighbourhood Admin & Support,Vehicle Running Costs,3132,15000 Litres Diesel at 79.71ppl into the Feeder Tank at ADDRESS REDACTED - key to the cabinet is available from the main office,06/05/2020,0000456183,"11,956.50",Revenue,Standard Fuel Oils LtdMain,131556
South Ribble Council,http://statistics.data.gov.uk/doc/local-authority/30UN,Neighbourhood Admin & Support,Vehicle Running Costs,3134,2500 litres Gas Oil @ 32.59 ppl,13/05/2020,0000456419,874.65,Revenue,Standard Fuel Oils LtdMain,131556
South Ribble Council,http://statistics.data.gov.uk/doc/local-authority/30UN,Neighbourhood Admin & Support,Vehicle Running Costs,3132,16000 litres Diesel @ 79.35ppl into the feeder tank at ADDRESS REDACTED - key for cabinet available from the main office,13/05/2020,0000456420,"12,964.51",Revenue,Standard Fuel Oils LtdMain,131556
South Ribble Council,http://statistics.data.gov.uk/doc/local-authority/30UN,Neighbourhood Admin & Support,Vehicle Running Costs,3134,2500 litres Gas Oil @ 34.73ppl,29/05/2020,0000456652,883.53,Revenue,Standard Fuel Oils LtdMain,131556
South Ribble Council,http://statistics.data.gov.uk/doc/local-authority/30UN,Neighbourhood Admin & Support,Vehicle Running Costs,3132,16000 litres Diesel @ 81.49ppl into the feeder tank at ADDRESS REDACTED - key for the cabinet available from the main office,29/05/2020,0000456659,"13,094.63",Revenue,Standard Fuel Oils LtdMain,131556
South Ribble Council,http://statistics.data.gov.uk/doc/local-authority/30UN,Legal,Legal,4821,PROFESSIONAL SERVICES WITH REGARD TO THE ISSUE OF WHEN A C3 USE BECOMES A C2 USE - PLANNING,29/05/2020,0000456670,"1,350.00",Revenue,STEPHANIE HALL,132966
South Ribble Council,http://statistics.data.gov.uk/doc/local-authority/30UN,Planning,Consultancy Fees,4541,Advice to planners April 2019 - March 2020,22/05/2020,0000456354,"3,995.00",Revenue,TAMESIDE METROPOLITAN BOROUGH COUNCIL,00037293
South Ribble Council,http://statistics.data.gov.uk/doc/local-authority/30UN,Area 2 - Waste Transport/Eastern & C,Materials General,4040,2 X BIN LIFT CLAMP SPRING  VO65KRE - JRC14511,27/05/2020,0000456084,640.00,Revenue,Taylor Enginering & Fabrications Ltd,132560
South Ribble Council,http://statistics.data.gov.uk/doc/local-authority/30UN,Area 2 - Waste Transport/Eastern & C,Materials General,4040,1 X BIN LIFT CLAMP SPRING  VO65KRF - JRC14512,27/05/2020,0000456084,320.00,Revenue,Taylor Enginering & Fabrications Ltd,132560
South Ribble Council,http://statistics.data.gov.uk/doc/local-authority/30UN,Area 2 - Waste Transport/Eastern & C,Materials General,4040,2 X BIN LIFT CLAMP SPRING  VO65KRD - JRC14510,27/05/2020,0000456084,640.00,Revenue,Taylor Enginering & Fabrications Ltd,132560
South Ribble Council,http://statistics.data.gov.uk/doc/local-authority/30UN,Area 2 - Waste Transport/Eastern & C,Materials General,4040,2 X BIN LIFT CLAMP SPRING  VO65KPZ - JRC14488,27/05/2020,0000456084,730.86,Revenue,Taylor Enginering & Fabrications Ltd,132560
South Ribble Council,http://statistics.data.gov.uk/doc/local-authority/30UN,Housing,Cap Grant- Improve Grants,C570,DFG BEDROOM AND BATHROOM ADAPTATION PLANS PROVIDED BY CUSTOMERS ARCHITECT. TOTAL COST 60040.00,27/05/2020,0000456658,"3,511.00",Revenue,TAYLOR NICOL BRICKWORK AND JOINERY LTD,133003
South Ribble Council,http://statistics.data.gov.uk/doc/local-authority/30UN,Information Services,Peripherals,4246,"Endpoint Manager & Migration, as per quote ref: TALSRBCQ008",06/05/2020,0000456143,"1,800.00",Revenue,TechAlign,132535
South Ribble Council,http://statistics.data.gov.uk/doc/local-authority/30UN,Information Services,Peripherals,4246,"3 days consultancy to allow for the completion of the Teams expansion activity, as per quote TALSRBCQ009",29/05/2020,0000456617,675.00,Revenue,TechAlign,132535
South Ribble Council,http://statistics.data.gov.uk/doc/local-authority/30UN,Information Services,Peripherals,4247,EAD 100Mb P2P circuit - Annual Rental 02/05/20 - 01/05/21,20/05/2020,0000456432,"2,123.00",Revenue,The Networking People (TNP) Ltd,132331
South Ribble Council,http://statistics.data.gov.uk/doc/local-authority/30UN,Legal,Publications,4142,alridge R67,22/05/2020,0000456556,576.00,Revenue,THOMSON REUTERS,00034979
South Ribble Council,http://statistics.data.gov.uk/doc/local-authority/30UN,Area 2 - Waste Transport/Eastern & C,External Contractors Charges,4570,SUPPLY AND FIT TIPPER BODY BX19EPJ JFC 13825,29/05/2020,0000452528,"7,070.00",Revenue,Tipmaster Ltd,132980
South Ribble Council,http://statistics.data.gov.uk/doc/local-authority/30UN,Area 2 - Waste Transport/Eastern & C,External Contractors Charges,4570,SUPPLY AND FIT TIPPER BODY BX19EPK JFC 13824,29/05/2020,0000452529,"7,070.00",Revenue,Tipmaster Ltd,132980
South Ribble Council,http://statistics.data.gov.uk/doc/local-authority/30UN,Property Services,Energy Costs,2304,31/1/20 to 30/4/20,13/05/2020,0000456190,"2,985.98",Revenue,Total Gas & power Ltd,132995
South Ribble Council,http://statistics.data.gov.uk/doc/local-authority/30UN,Property Services,Energy Costs,2307,CCL,13/05/2020,0000456190,291.20,Revenue,Total Gas & power Ltd,132995
South Ribble Council,http://statistics.data.gov.uk/doc/local-authority/30UN,Property Services,Energy Costs,2304,31/1/20 to 30/4/20,13/05/2020,0000456191,"1,607.38",Revenue,Total Gas & power Ltd,132995
South Ribble Council,http://statistics.data.gov.uk/doc/local-authority/30UN,Property Services,Energy Costs,2307,CCL,13/05/2020,0000456191,137.34,Revenue,Total Gas & power Ltd,132995
South Ribble Council,http://statistics.data.gov.uk/doc/local-authority/30UN,Property Services,Energy Costs,2303,1/4/20 to 30/4/20,13/05/2020,0000456281,"3,011.85",Revenue,Total Gas & power Ltd,132995
South Ribble Council,http://statistics.data.gov.uk/doc/local-authority/30UN,Property Services,Energy Costs,2307,CCL,13/05/2020,0000456281,161.77,Revenue,Total Gas & power Ltd,132995
South Ribble Council,http://statistics.data.gov.uk/doc/local-authority/30UN,Property Services,Energy Costs,2303,1/4/20 to 3o/4/20,13/05/2020,0000456282,767.21,Revenue,Total Gas & power Ltd,132995
South Ribble Council,http://statistics.data.gov.uk/doc/local-authority/30UN,Property Services,Energy Costs,2307,CCL,13/05/2020,0000456282,34.45,Revenue,Total Gas & power Ltd,132995
South Ribble Council,http://statistics.data.gov.uk/doc/local-authority/30UN,Property Services,Energy Costs,2303,1/4/20 to 30/4/20,13/05/2020,0000456284,"1,949.23",Revenue,Total Gas & power Ltd,132995
South Ribble Council,http://statistics.data.gov.uk/doc/local-authority/30UN,Property Services,Energy Costs,2303,CCL,13/05/2020,0000456284,109.21,Revenue,Total Gas & power Ltd,132995
South Ribble Council,http://statistics.data.gov.uk/doc/local-authority/30UN,Property Services,Operational Furniture & Equip,4012,2020 / 2021 annual contract for the monthly rental of hot drinks machines at the civic centre including environmental charge.,13/05/2020,0000456195,372.89,Revenue,VENDING ENTERPRISES,00101501
South Ribble Council,http://statistics.data.gov.uk/doc/local-authority/30UN,Property Services,Rep & Maint Premises,2020,Annual Contract for the sanitisation of the extra 6 water coolers located at the Civic Centre from May 2020 to March 2021 to cover invoice 5011351,13/05/2020,0000456195,779.94,Revenue,VENDING ENTERPRISES,00101501
South Ribble Council,http://statistics.data.gov.uk/doc/local-authority/30UN,Property Services,Agency Fees,1121,Surveyor consultancy for the period 28 March 2020 - 30 June 2020.,01/05/2020,0000455987,"1,988.42",Revenue,Vivid Resourcing,132999
South Ribble Council,http://statistics.data.gov.uk/doc/local-authority/30UN,Property Services,Agency Fees,1121,Surveyor consultancy for the period 28 March 2020 - 30 June 2020.,01/05/2020,0000456089,"2,106.51",Revenue,Vivid Resourcing,132999
South Ribble Council,http://statistics.data.gov.uk/doc/local-authority/30UN,Property Services,Agency Fees,1121,Surveyor consultancy for the period 28 March 2020 - 30 June 2020.,13/05/2020,0000456286,"1,992.34",Revenue,Vivid Resourcing,132999
South Ribble Council,http://statistics.data.gov.uk/doc/local-authority/30UN,Property Services,Agency Fees,1121,Surveyor consultancy for the period 28 March 2020 - 30 June 2020.,15/05/2020,0000456450,"1,686.09",Revenue,Vivid Resourcing,132999
South Ribble Council,http://statistics.data.gov.uk/doc/local-authority/30UN,Property Services,Agency Fees,1121,Surveyor consultancy for the period 28 March 2020 - 30 June 2020.,22/05/2020,0000456573,"1,939.42",Revenue,Vivid Resourcing,132999
South Ribble Council,http://statistics.data.gov.uk/doc/local-authority/30UN,Information Services,Peripherals,4269,26th april 20,06/05/2020,0000456123,"4,157.08",Revenue,VODAFONE RE:CABLE & WIRELESS UK,130810
South Ribble Council,http://statistics.data.gov.uk/doc/local-authority/30UN,Information Services,Peripherals,4247,01 may 2020,20/05/2020,0000456343,"2,404.20",Revenue,VODAFONE RE:CABLE & WIRELESS UK,130810
South Ribble Council,http://statistics.data.gov.uk/doc/local-authority/30UN,Information Services,Peripherals,4269,26 may 2020,29/05/2020,0000456673,"3,455.42",Revenue,VODAFONE RE:CABLE & WIRELESS UK,130810
South Ribble Council,http://statistics.data.gov.uk/doc/local-authority/30UN,Property Services,Water Charges,2511,13/2/20 to 26/4/20,13/05/2020,0000456269,"1,698.66",Revenue,WATER PLUS,00029845
South Ribble Council,http://statistics.data.gov.uk/doc/local-authority/30UN,Property Services,Rates,2412,hope terrace car park,15/05/2020,0000456416,"1,844.53",Revenue,WATER PLUS,00029845
South Ribble Council,http://statistics.data.gov.uk/doc/local-authority/30UN,Property Services,Rates,2412,hope terrace toilets,15/05/2020,0000456416,147.28,Revenue,WATER PLUS,00029845
South Ribble Council,http://statistics.data.gov.uk/doc/local-authority/30UN,Property Services,Rates,2412,greenbank car park,15/05/2020,0000456416,19.50,Revenue,WATER PLUS,00029845
South Ribble Council,http://statistics.data.gov.uk/doc/local-authority/30UN,Property Services,Rates,2412,penwortham car park,15/05/2020,0000456416,58.00,Revenue,WATER PLUS,00029845
South Ribble Council,http://statistics.data.gov.uk/doc/local-authority/30UN,Property Services,Rates,2412,art museum,15/05/2020,0000456416,147.28,Revenue,WATER PLUS,00029845
South Ribble Council,http://statistics.data.gov.uk/doc/local-authority/30UN,Property Services,Rates,2412,churchill way car park,15/05/2020,0000456416,"1,844.53",Revenue,WATER PLUS,00029845
South Ribble Council,http://statistics.data.gov.uk/doc/local-authority/30UN,Property Services,Rates,2412,king street car park,15/05/2020,0000456416,"8,695.94",Revenue,WATER PLUS,00029845
South Ribble Council,http://statistics.data.gov.uk/doc/local-authority/30UN,Property Services,Rates,2412,kings court,15/05/2020,0000456416,92.50,Revenue,WATER PLUS,00029845
South Ribble Council,http://statistics.data.gov.uk/doc/local-authority/30UN,Property Services,Rates,2412,car park 329-327 leyland,15/05/2020,0000456416,35.00,Revenue,WATER PLUS,00029845
South Ribble Council,http://statistics.data.gov.uk/doc/local-authority/30UN,Property Services,Rates,2412,civic ctr west paddock,15/05/2020,0000456416,"16,521.26",Revenue,WATER PLUS,00029845
South Ribble Council,http://statistics.data.gov.uk/doc/local-authority/30UN,Property Services,Rates,2412,brandforth street car park,15/05/2020,0000456416,12.00,Revenue,WATER PLUS,00029845
South Ribble Council,http://statistics.data.gov.uk/doc/local-authority/30UN,Property Services,Rates,2412,cann bridge,15/05/2020,0000456416,365.80,Revenue,WATER PLUS,00029845
South Ribble Council,http://statistics.data.gov.uk/doc/local-authority/30UN,Property Services,Rates,2412,james st bamber bridge,15/05/2020,0000456416,7.50,Revenue,WATER PLUS,00029845
South Ribble Council,http://statistics.data.gov.uk/doc/local-authority/30UN,Property Services,Rates,2412,kingsway car park,15/05/2020,0000456416,65.50,Revenue,WATER PLUS,00029845
South Ribble Council,http://statistics.data.gov.uk/doc/local-authority/30UN,Property Services,Rates,2412,ADDRESS REDACTED,15/05/2020,0000456416,9.50,Revenue,WATER PLUS,00029845
South Ribble Council,http://statistics.data.gov.uk/doc/local-authority/30UN,Property Services,Rates,2412,car park riverside medical,15/05/2020,0000456416,51.00,Revenue,WATER PLUS,00029845
South Ribble Council,http://statistics.data.gov.uk/doc/local-authority/30UN,Property Services,Rates,2412,withy grove,15/05/2020,0000456416,147.28,Revenue,WATER PLUS,00029845
South Ribble Council,http://statistics.data.gov.uk/doc/local-authority/30UN,Property Services,Water Charges,2511,19/2/20 to 6/5/20,15/05/2020,0000456449,598.12,Revenue,WATER PLUS,00029845
South Ribble Council,http://statistics.data.gov.uk/doc/local-authority/30UN,Property Services,Water Charges,2511,,27/05/2020,0000456602,"3,638.44",Revenue,WATER PLUS,00029845
South Ribble Council,http://statistics.data.gov.uk/doc/local-authority/30UN,Legal,Legal,4821,PROFESSIONAL SERVICES IN RESPECT OF A CLAIM MADE BY NAME REDACTED AGAINST SRBC - NAME REDACTED AT WEIGHTMANS,13/05/2020,0000456278,"1,345.50",Revenue,WEIGHTMANS LLP,00120867
South Ribble Council,http://statistics.data.gov.uk/doc/local-authority/30UN,Legal,Legal,4821,PROFESSIONAL SERVICES WITH REGARD TO ADDRESS REDACTED,13/05/2020,0000456376,"3,146.00",Revenue,WEIGHTMANS LLP,00120867
South Ribble Council,http://statistics.data.gov.uk/doc/local-authority/30UN,Area 3 - Parks/Leyland East West,External Contractors Charges,4570,"Removal of tree 
Miniature Railway - Worden Park",29/05/2020,0000456538,"2,550.00",Revenue,WESTFIELD TREE SERVICES LTD,00114226
South Ribble Council,http://statistics.data.gov.uk/doc/local-authority/30UN,Planning,Professional Fees,4510,Transport Consultancy Services for ADDRESS REDACTED,15/05/2020,0000456446,"1,850.00",Revenue,WSP UK Ltd,132833
